Workbook

Sheet MainLevelSettingConfig
B1: Id | C1: Name | D1: SimpleLevel | E1: NormalLevel | F1: DifficultyLevel | G1: HellLevel | H1: NightmareLevel | I1: ChapterEvent | J1: ChapterEventBg | K1: ChapterBg | L1: ChapterBgPos | M1: ChapterBgScale | N1: MainMapScale | O1: ChapterTitlePosition | P1: ChapterRolePosition | Q1: ChapterClickPosition | R1: Title | S1: info | T1: EventId
B2: int | C2: string | D2: mut,int#int,1 | E2: mut,int#int,1 | F2: mut,int#int,1 | G2: mut,int#int,1 | H2: mut,int#int,1 | I2: int | J2: string | K2: string | L2: mut,float#float,1 | M2: int | N2: float | O2: mut,float#float,1 | P2: mut,float#float,1 | Q2: mut,float#float,1 | R2: string | S2: string | T2: int
B3: 2 | C3: 2 | D3: 2 | E3: 2 | F3: 2 | G3: 2 | H3: 2 | I3: 3 | J3: 3 | K3: 3 | L3: 3 | M3: 3 | N3: 3 | O3: 3 | P3: 3 | Q3: 3 | R3: 3 | S3: 3 | T3: 3
B4: 区域id | C4: 区域名称 | D4: 包含简单关卡 | E4: 包含普通关卡 | F4: 包含困难关卡 | G4: 包含地狱关卡 | H4: 包含噩梦关卡 | I4: 开启剧情eventid | J4: 剧情背景图 | K4: 对应的背景图 artresources | L4: 对应的背景图位置 artresources | M4: 对应的背景图缩放 artresources | N4: 关卡主界面地图缩放值 | O4: 章节名称标签位置 | P4: 小人在章节地图的位置 | Q4: 点击热区在章节地图的位置 | R4: 剧情对话标题 | S4: 关卡描述 | T4: 章节开启时对话的ID
A5: 默认值 | B5: 0 | D5: null | E5: null | F5: null | G5: null | H5: null | T5: 0
A6: 正确性校对
A7: 校对值
B8: 1 | C8: 荆棘流域 | D8: 1011#1021#1031#1041#1051#1061#1071#1081#1091#1101#1111#1121#1131#1141#1151#1161#1171#1181#1191#1201 | E8: 1012#1022#1032#1042#1052#1062#1072#1082#1092#1102#1112#1122#1132#1142#1152#1162#1172#1182#1192#1202#1212#1222#1232#1242#1252#1262#1272#1282#1292#1302 | F8: 1013#1023#1033#1043#1053#1063#1073#1083#1093#1103#1113#1123#1133#1143#1153#1163#1173#1183#1193#1203#1213#1223#1233#1243#1253#1263#1273#1283#1293#1303#1313#1323#1333#1343#1353#1363#1373#1383#1393#1403 | G8: 1014#1024#1034#1044#1054#1064#1074#1084#1094#1104#1114#1124#1134#1144#1154#1164#1174#1184#1194#1204#1214#1224#1234#1244#1254#1264#1274#1284#1294#1304#1314#1324#1334#1344#1354#1364#1374#1384#1394#1404 | H8: 1015#1025#1035#1045#1055#1065#1075#1085#1095#1105#1115#1125#1135#1145#1155#1165#1175#1185#1195#1205#1215#1225#1235#1245#1255#1265#1275#1285#1295#1305#1315#1325#1335#1345#1355#1365#1375#1385#1395#1405 | I8: 101001 | J8: r_duihuabg_001 | K8: r_guanka_001 | L8: 0#-367 | M8: 1 | N8: 1.4 | O8: 977#-2307 | P8: 1084#-2682 | Q8: 119#-215 | R8: 浓雾之森 | S8: 樵村渔浦，毁于一旦。#渔夫村老，十不存一。#妖兽天灾，堪如灭顶。#昔日风光，何时再现。 | T8: 200001
B9: 2 | C9: 疾行水路 | D9: 2011#2021#2031#2041#2051#2061#2071#2081#2091#2101#2111#2121#2131#2141#2151#2161#2171#2181#2191#2201 | E9: 2012#2022#2032#2042#2052#2062#2072#2082#2092#2102#2112#2122#2132#2142#2152#2162#2172#2182#2192#2202#2212#2222#2232#2242#2252#2262#2272#2282#2292#2302 | F9: 2013#2023#2033#2043#2053#2063#2073#2083#2093#2103#2113#2123#2133#2143#2153#2163#2173#2183#2193#2203#2213#2223#2233#2243#2253#2263#2273#2283#2293#2303#2313#2323#2333#2343#2353#2363#2373#2383#2393#2403 | G9: 2014#2024#2034#2044#2054#2064#2074#2084#2094#2104#2114#2124#2134#2144#2154#2164#2174#2184#2194#2204#2214#2224#2234#2244#2254#2264#2274#2284#2294#2304#2314#2324#2334#2344#2354#2364#2374#2384#2394#2404 | H9: 2015#2025#2035#2045#2055#2065#2075#2085#2095#2105#2115#2125#2135#2145#2155#2165#2175#2185#2195#2205#2215#2225#2235#2245#2255#2265#2275#2285#2295#2305#2315#2325#2335#2345#2355#2365#2375#2385#2395#2405 | I9: 102001 | J9: r_duihuabg_002 | K9: r_guanka_002 | L9: 16#-335 | M9: 1 | N9: 1.5 | O9: 1422#-2350 | P9: 1536#-2653 | Q9: 153#-218 | R9: 三途津 | S9: 渔村江流，一叶扁舟。#青山绿水，无心留赏。#妖兽危机，愈演愈切。#心急如焚，船行似箭。 | T9: 200003
B10: 3 | C10: 追踪原野 | D10: 3011#3021#3031#3041#3051#3061#3071#3081#3091#3101#3111#3121#3131#3141#3151#3161#3171#3181#3191#3201 | E10: 3012#3022#3032#3042#3052#3062#3072#3082#3092#3102#3112#3122#3132#3142#3152#3162#3172#3182#3192#3202#3212#3222#3232#3242#3252#3262#3272#3282#3292#3302 | F10: 3013#3023#3033#3043#3053#3063#3073#3083#3093#3103#3113#3123#3133#3143#3153#3163#3173#3183#3193#3203#3213#3223#3233#3243#3253#3263#3273#3283#3293#3303#3313#3323#3333#3343#3353#3363#3373#3383#3393#3403 | G10: 3014#3024#3034#3044#3054#3064#3074#3084#3094#3104#3114#3124#3134#3144#3154#3164#3174#3184#3194#3204#3214#3224#3234#3244#3254#3264#3274#3284#3294#3304#3314#3324#3334#3344#3354#3364#3374#3384#3394#3404 | H10: 3015#3025#3035#3045#3055#3065#3075#3085#3095#3105#3115#3125#3135#3145#3155#3165#3175#3185#3195#3205#3215#3225#3235#3245#3255#3265#3275#3285#3295#3305#3315#3325#3335#3345#3355#3365#3375#3385#3395#3405 | I10: 103001 | J10: r_duihuabg_003 | K10: r_guanka_003 | L10: -37#-320 | M10: 1 | N10: 1.5 | O10: 1471#-1967 | P10: 1594#-2287 | Q10: 78#-143 | R10: 拔刀相助 | S10: 蛛丝马迹，逐寻原野。#危机四伏，前路未知。#枯苗望雨，望眼欲穿。#重逢之时，指日可待。 | T10: 200007
B11: 4 | C11: 观澜港口 | D11: 4011#4021#4031#4041#4051#4061#4071#4081#4091#4101#4111#4121#4131#4141#4151#4161#4171#4181#4191#4201 | E11: 4012#4022#4032#4042#4052#4062#4072#4082#4092#4102#4112#4122#4132#4142#4152#4162#4172#4182#4192#4202#4212#4222#4232#4242#4252#4262#4272#4282#4292#4302 | F11: 4013#4023#4033#4043#4053#4063#4073#4083#4093#4103#4113#4123#4133#4143#4153#4163#4173#4183#4193#4203#4213#4223#4233#4243#4253#4263#4273#4283#4293#4303#4313#4323#4333#4343#4353#4363#4373#4383#4393#4403 | G11: 4014#4024#4034#4044#4054#4064#4074#4084#4094#4104#4114#4124#4134#4144#4154#4164#4174#4184#4194#4204#4214#4224#4234#4244#4254#4264#4274#4284#4294#4304#4314#4324#4334#4344#4354#4364#4374#4384#4394#4404 | H11: 4015#4025#4035#4045#4055#4065#4075#4085#4095#4105#4115#4125#4135#4145#4155#4165#4175#4185#4195#4205#4215#4225#4235#4245#4255#4265#4275#4285#4295#4305#4315#4325#4335#4345#4355#4365#4375#4385#4395#4405 | I11: 104001 | J11: r_duihuabg_004 | K11: r_guanka_004 | L11: 0#-295 | M11: 1 | N11: 1.3 | O11: 2237#-1938 | P11: 2162#-2279 | Q11: -11#-129 | R11: 渔民的帮助 | S11: 繁荣之港，危情千钧。#雾里看花，不明就里。#未雨绸缪，百姓得存。#厉兵秣马，御敌于外。 | T11: 200012
B12: 5 | C12: 聚落废墟 | D12: 5011#5021#5031#5041#5051#5061#5071#5081#5091#5101#5111#5121#5131#5141#5151#5161#5171#5181#5191#5201 | E12: 5012#5022#5032#5042#5052#5062#5072#5082#5092#5102#5112#5122#5132#5142#5152#5162#5172#5182#5192#5202#5212#5222#5232#5242#5252#5262#5272#5282#5292#5302 | F12: 5013#5023#5033#5043#5053#5063#5073#5083#5093#5103#5113#5123#5133#5143#5153#5163#5173#5183#5193#5203#5213#5223#5233#5243#5253#5263#5273#5283#5293#5303#5313#5323#5333#5343#5353#5363#5373#5383#5393#5403 | G12: 5014#5024#5034#5044#5054#5064#5074#5084#5094#5104#5114#5124#5134#5144#5154#5164#5174#5184#5194#5204#5214#5224#5234#5244#5254#5264#5274#5284#5294#5304#5314#5324#5334#5344#5354#5364#5374#5384#5394#5404 | H12: 5015#5025#5035#5045#5055#5065#5075#5085#5095#5105#5115#5125#5135#5145#5155#5165#5175#5185#5195#5205#5215#5225#5235#5245#5255#5265#5275#5285#5295#5305#5315#5325#5335#5345#5355#5365#5375#5385#5395#5405 | I12: 105001 | J12: r_duihuabg_005 | K12: r_guanka_005 | L12: 0#-367 | M12: 1 | N12: 1.3 | O12: 2013#-2280 | P12: 2120#-2637 | Q12: 105#-148 | R12: 荒岛奇遇 | S12: 三途聚落，昔日繁华。#兽潮过处，草木不存。#毁灭之后，却待新生。#魑魅魍魉，我自迎上。 | T12: 200015
B13: 6 | C13: 浓雾森林 | D13: 6011#6021#6031#6041#6051#6061#6071#6081#6091#6101#6111#6121#6131#6141#6151#6161#6171#6181#6191#6201 | E13: 6012#6022#6032#6042#6052#6062#6072#6082#6092#6102#6112#6122#6132#6142#6152#6162#6172#6182#6192#6202#6212#6222#6232#6242#6252#6262#6272#6282#6292#6302 | F13: 6013#6023#6033#6043#6053#6063#6073#6083#6093#6103#6113#6123#6133#6143#6153#6163#6173#6183#6193#6203#6213#6223#6233#6243#6253#6263#6273#6283#6293#6303#6313#6323#6333#6343#6353#6363#6373#6383#6393#6403 | G13: 6014#6024#6034#6044#6054#6064#6074#6084#6094#6104#6114#6124#6134#6144#6154#6164#6174#6184#6194#6204#6214#6224#6234#6244#6254#6264#6274#6284#6294#6304#6314#6324#6334#6344#6354#6364#6374#6384#6394#6404 | H13: 6015#6025#6035#6045#6055#6065#6075#6085#6095#6105#6115#6125#6135#6145#6155#6165#6175#6185#6195#6205#6215#6225#6235#6245#6255#6265#6275#6285#6295#6305#6315#6325#6335#6345#6355#6365#6375#6385#6395#6405 | I13: 106001 | J13: r_duihuabg_001 | K13: r_guanka_006 | L13: 10#-410 | M13: 1 | N13: 1.5 | O13: 1860#-2678 | P13: 1986#-3043 | Q13: 129#-221 | R13: 观澜港守备军 | S13: 幽林迷境，冒险伊始。#密林深处，不知其名。#妖兽遍野，终焉将至。#偷天换日，背水一战。 | T13: 200018
B14: 7 | C14: 锦绣河山 | D14: 7011#7021#7031#7041#7051#7061#7071#7081#7091#7101#7111#7121#7131#7141#7151#7161#7171#7181#7191#7201 | E14: 7012#7022#7032#7042#7052#7062#7072#7082#7092#7102#7112#7122#7132#7142#7152#7162#7172#7182#7192#7202#7212#7222#7232#7242#7252#7262#7272#7282#7292#7302 | F14: 7013#7023#7033#7043#7053#7063#7073#7083#7093#7103#7113#7123#7133#7143#7153#7163#7173#7183#7193#7203#7213#7223#7233#7243#7253#7263#7273#7283#7293#7303#7313#7323#7333#7343#7353#7363#7373#7383#7393#7403 | G14: 7014#7024#7034#7044#7054#7064#7074#7084#7094#7104#7114#7124#7134#7144#7154#7164#7174#7184#7194#7204#7214#7224#7234#7244#7254#7264#7274#7284#7294#7304#7314#7324#7334#7344#7354#7364#7374#7384#7394#7404 | H14: 7015#7025#7035#7045#7055#7065#7075#7085#7095#7105#7115#7125#7135#7145#7155#7165#7175#7185#7195#7205#7215#7225#7235#7245#7255#7265#7275#7285#7295#7305#7315#7325#7335#7345#7355#7365#7375#7385#7395#7405 | I14: 107001 | J14: r_duihuabg_002 | K14: r_guanka_007 | L14: -42#-358 | M14: 1 | N14: 1.5 | O14: 2496#-2737 | P14: 2585#-3074 | Q14: 92#-213 | R14: 帮助平民 | S14: 秀山依旧，春风花草。#溪云初起，四月芳菲。#千鸟绝飞，万径无踪。#山河仍在，草木已深。 | T14: 200021
B15: 8 | C15: 海岛遗境 | D15: 8011#8021#8031#8041#8051#8061#8071#8081#8091#8101#8111#8121#8131#8141#8151#8161#8171#8181#8191#8201 | E15: 8012#8022#8032#8042#8052#8062#8072#8082#8092#8102#8112#8122#8132#8142#8152#8162#8172#8182#8192#8202#8212#8222#8232#8242#8252#8262#8272#8282#8292#8302 | F15: 8013#8023#8033#8043#8053#8063#8073#8083#8093#8103#8113#8123#8133#8143#8153#8163#8173#8183#8193#8203#8213#8223#8233#8243#8253#8263#8273#8283#8293#8303#8313#8323#8333#8343#8353#8363#8373#8383#8393#8403 | G15: 8014#8024#8034#8044#8054#8064#8074#8084#8094#8104#8114#8124#8134#8144#8154#8164#8174#8184#8194#8204#8214#8224#8234#8244#8254#8264#8274#8284#8294#8304#8314#8324#8334#8344#8354#8364#8374#8384#8394#8404 | H15: 8015#8025#8035#8045#8055#8065#8075#8085#8095#8105#8115#8125#8135#8145#8155#8165#8175#8185#8195#8205#8215#8225#8235#8245#8255#8265#8275#8285#8295#8305#8315#8325#8335#8345#8355#8365#8375#8385#8395#8405 | I15: 108001 | J15: r_duihuabg_003 | K15: r_guanka_008 | L15: 3.8#-316 | M15: 1 | N15: 1.7 | O15: 2963#-2867 | P15: 3067#-3208 | Q15: 137#-199 | R15: 终亡教徒 | S15: 昔日伙伴，不知所踪。#寻踪觅迹，线索浮现。#水清木华，信念不弃。#塞翁失马，焉知非福。 | T15: 200027
B16: 9 | C16: 黍秀宫廷 | D16: 9011#9021#9031#9041#9051#9061#9071#9081#9091#9101#9111#9121#9131#9141#9151#9161#9171#9181#9191#9201 | E16: 9012#9022#9032#9042#9052#9062#9072#9082#9092#9102#9112#9122#9132#9142#9152#9162#9172#9182#9192#9202#9212#9222#9232#9242#9252#9262#9272#9282#9292#9302 | F16: 9013#9023#9033#9043#9053#9063#9073#9083#9093#9103#9113#9123#9133#9143#9153#9163#9173#9183#9193#9203#9213#9223#9233#9243#9253#9263#9273#9283#9293#9303#9313#9323#9333#9343#9353#9363#9373#9383#9393#9403 | G16: 9014#9024#9034#9044#9054#9064#9074#9084#9094#9104#9114#9124#9134#9144#9154#9164#9174#9184#9194#9204#9214#9224#9234#9244#9254#9264#9274#9284#9294#9304#9314#9324#9334#9344#9354#9364#9374#9384#9394#9404 | H16: 9015#9025#9035#9045#9055#9065#9075#9085#9095#9105#9115#9125#9135#9145#9155#9165#9175#9185#9195#9205#9215#9225#9235#9245#9255#9265#9275#9285#9295#9305#9315#9325#9335#9345#9355#9365#9375#9385#9395#9405 | I16: 109001 | J16: r_duihuabg_004 | K16: r_guanka_009 | L16: 35#-368 | M16: 1 | N16: 1.5 | O16: 2911#-2338 | P16: 2743#-2734 | Q16: -122#-164 | R16: 清理道路 | S16: 曲径通幽，楼阁隐现。#山间避世，难免天灾。#悠游大地，齐人共难。#钟神造化，阴阳昏晓。 | T16: 200029
B17: 10 | C17: 朝圣之路 | D17: 10011#10021#10031#10041#10051#10061#10071#10081#10091#10101#10111#10121#10131#10141#10151#10161#10171#10181#10191#10201 | E17: 10012#10022#10032#10042#10052#10062#10072#10082#10092#10102#10112#10122#10132#10142#10152#10162#10172#10182#10192#10202#10212#10222#10232#10242#10252#10262#10272#10282#10292#10302 | F17: 10013#10023#10033#10043#10053#10063#10073#10083#10093#10103#10113#10123#10133#10143#10153#10163#10173#10183#10193#10203#10213#10223#10233#10243#10253#10263#10273#10283#10293#10303#10313#10323#10333#10343#10353#10363#10373#10383#10393#10403 | G17: 10014#10024#10034#10044#10054#10064#10074#10084#10094#10104#10114#10124#10134#10144#10154#10164#10174#10184#10194#10204#10214#10224#10234#10244#10254#10264#10274#10284#10294#10304#10314#10324#10334#10344#10354#10364#10374#10384#10394#10404 | H17: 10015#10025#10035#10045#10055#10065#10075#10085#10095#10105#10115#10125#10135#10145#10155#10165#10175#10185#10195#10205#10215#10225#10235#10245#10255#10265#10275#10285#10295#10305#10315#10325#10335#10345#10355#10365#10375#10385#10395#10405 | I17: 110001 | J17: r_duihuabg_005 | K17: r_guanka_010 | L17: -55#-248 | M17: 1 | N17: 1.6 | O17: 3113#-1979 | P17: 3041#-2321 | Q17: -99#-132 | R17: 地堡 | S17: 可堪回首，神呀涉谷。#佛性清净，何处尘埃。#禅祠山下，梦魂归所。#言遇劫火，千年怒潮。 | T17: 200033
B18: 11 | C18: 上古遗阵 | D18: 11011#11021#11031#11041#11051#11061#11071#11081#11091#11101#11111#11121#11131#11141#11151#11161#11171#11181#11191#11201 | E18: 11012#11022#11032#11042#11052#11062#11072#11082#11092#11102#11112#11122#11132#11142#11152#11162#11172#11182#11192#11202#11212#11222#11232#11242#11252#11262#11272#11282#11292#11302 | F18: 11013#11023#11033#11043#11053#11063#11073#11083#11093#11103#11113#11123#11133#11143#11153#11163#11173#11183#11193#11203#11213#11223#11233#11243#11253#11263#11273#11283#11293#11303#11313#11323#11333#11343#11353#11363#11373#11383#11393#11403 | G18: 11014#11024#11034#11044#11054#11064#11074#11084#11094#11104#11114#11124#11134#11144#11154#11164#11174#11184#11194#11204#11214#11224#11234#11244#11254#11264#11274#11284#11294#11304#11314#11324#11334#11344#11354#11364#11374#11384#11394#11404 | H18: 11015#11025#11035#11045#11055#11065#11075#11085#11095#11105#11115#11125#11135#11145#11155#11165#11175#11185#11195#11205#11215#11225#11235#11245#11255#11265#11275#11285#11295#11305#11315#11325#11335#11345#11355#11365#11375#11385#11395#11405 | I18: 111001 | J18: r_duihuabg_001 | K18: r_guanka_011 | L18: 3.8#-382 | M18: 1 | N18: 1.5 | O18: 2988#-1561 | P18: 3121#-1928 | Q18: 139#-157 | R18: 准备 | S18: 人族纪元，几经磨炼。#四面妖声，侵掠如火。#上古遗阵，或为奇兵。#异妖之示，福泽困城。 | T18: 200036
B19: 12 | C19: 混乱之城 | D19: 12011#12021#12031#12041#12051#12061#12071#12081#12091#12101#12111#12121#12131#12141#12151#12161#12171#12181#12191#12201 | E19: 12012#12022#12032#12042#12052#12062#12072#12082#12092#12102#12112#12122#12132#12142#12152#12162#12172#12182#12192#12202#12212#12222#12232#12242#12252#12262#12272#12282#12292#12302 | F19: 12013#12023#12033#12043#12053#12063#12073#12083#12093#12103#12113#12123#12133#12143#12153#12163#12173#12183#12193#12203#12213#12223#12233#12243#12253#12263#12273#12283#12293#12303#12313#12323#12333#12343#12353#12363#12373#12383#12393#12403 | G19: 12014#12024#12034#12044#12054#12064#12074#12084#12094#12104#12114#12124#12134#12144#12154#12164#12174#12184#12194#12204#12214#12224#12234#12244#12254#12264#12274#12284#12294#12304#12314#12324#12334#12344#12354#12364#12374#12384#12394#12404 | H19: 12015#12025#12035#12045#12055#12065#12075#12085#12095#12105#12115#12125#12135#12145#12155#12165#12175#12185#12195#12205#12215#12225#12235#12245#12255#12265#12275#12285#12295#12305#12315#12325#12335#12345#12355#12365#12375#12385#12395#12405 | I19: 112001 | J19: r_duihuabg_002 | K19: r_guanka_012 | L19: -14#-282 | M19: 1 | N19: 1.5 | O19: 3826#-1965 | P19: 3706#-2269 | Q19: -125#-90 | R19: 不忘初心 | S19: 欲使其亡，先使其狂。#宵小之徒，逐一浮现。#大厦将倾，独力难挽。#人事已尽，各安天命。 | T19: 200042
B20: 13 | C20: 御水宝涧 | D20: 13011#13021#13031#13041#13051#13061#13071#13081#13091#13101#13111#13121#13131#13141#13151#13161#13171#13181#13191#13201 | E20: 13012#13022#13032#13042#13052#13062#13072#13082#13092#13102#13112#13122#13132#13142#13152#13162#13172#13182#13192#13202#13212#13222#13232#13242#13252#13262#13272#13282#13292#13302 | F20: 13013#13023#13033#13043#13053#13063#13073#13083#13093#13103#13113#13123#13133#13143#13153#13163#13173#13183#13193#13203#13213#13223#13233#13243#13253#13263#13273#13283#13293#13303#13313#13323#13333#13343#13353#13363#13373#13383#13393#13403 | G20: 13014#13024#13034#13044#13054#13064#13074#13084#13094#13104#13114#13124#13134#13144#13154#13164#13174#13184#13194#13204#13214#13224#13234#13244#13254#13264#13274#13284#13294#13304#13314#13324#13334#13344#13354#13364#13374#13384#13394#13404 | H20: 13015#13025#13035#13045#13055#13065#13075#13085#13095#13105#13115#13125#13135#13145#13155#13165#13175#13185#13195#13205#13215#13225#13235#13245#13255#13265#13275#13285#13295#13305#13315#13325#13335#13345#13355#13365#13375#13385#13395#13405 | I20: 113001 | J20: r_duihuabg_003 | K20: r_guanka_013 | L20: 9.5#-343 | M20: 1 | N20: 1.5 | O20: 3404#-2333 | P20: 3509#-2737 | Q20: 112#-250 | R20: 向死而生 | S20: 古阵之启，尚需奇物。#珍稀灵石，少见于世。#城主府库，或有留存。#铤而走险，火中取栗。 | T20: 200046
B21: 14 | C21: 黄泉酆都 | D21: 14011#14021#14031#14041#14051#14061#14071#14081#14091#14101#14111#14121#14131#14141#14151#14161#14171#14181#14191#14201 | E21: 14012#14022#14032#14042#14052#14062#14072#14082#14092#14102#14112#14122#14132#14142#14152#14162#14172#14182#14192#14202#14212#14222#14232#14242#14252#14262#14272#14282#14292#14302 | F21: 14013#14023#14033#14043#14053#14063#14073#14083#14093#14103#14113#14123#14133#14143#14153#14163#14173#14183#14193#14203#14213#14223#14233#14243#14253#14263#14273#14283#14293#14303#14313#14323#14333#14343#14353#14363#14373#14383#14393#14403 | G21: 14014#14024#14034#14044#14054#14064#14074#14084#14094#14104#14114#14124#14134#14144#14154#14164#14174#14184#14194#14204#14214#14224#14234#14244#14254#14264#14274#14284#14294#14304#14314#14324#14334#14344#14354#14364#14374#14384#14394#14404 | H21: 14015#14025#14035#14045#14055#14065#14075#14085#14095#14105#14115#14125#14135#14145#14155#14165#14175#14185#14195#14205#14215#14225#14235#14245#14255#14265#14275#14285#14295#14305#14315#14325#14335#14345#14355#14365#14375#14385#14395#14405 | I21: 114001 | J21: r_duihuabg_004 | K21: r_guanka_014 | L21: -5.7#-334 | M21: 1 | N21: 1.5 | O21: 4039#-2669 | P21: 3940#-3033 | Q21: -107#-128 | R21: 你中有我 | S21: 彼岸花炽，谁匿香里。#往歌如旧，离合知否。#起忆无人，万里惘然。#灯稀火寒，花叶不见。 | T21: 200049
B22: 15 | C22: 危机之城 | D22: 15011#15021#15031#15041#15051#15061#15071#15081#15091#15101#15111#15121#15131#15141#15151#15161#15171#15181#15191#15201 | E22: 15012#15022#15032#15042#15052#15062#15072#15082#15092#15102#15112#15122#15132#15142#15152#15162#15172#15182#15192#15202#15212#15222#15232#15242#15252#15262#15272#15282#15292#15302 | F22: 15013#15023#15033#15043#15053#15063#15073#15083#15093#15103#15113#15123#15133#15143#15153#15163#15173#15183#15193#15203#15213#15223#15233#15243#15253#15263#15273#15283#15293#15303#15313#15323#15333#15343#15353#15363#15373#15383#15393#15403 | G22: 15014#15024#15034#15044#15054#15064#15074#15084#15094#15104#15114#15124#15134#15144#15154#15164#15174#15184#15194#15204#15214#15224#15234#15244#15254#15264#15274#15284#15294#15304#15314#15324#15334#15344#15354#15364#15374#15384#15394#15404 | H22: 15015#15025#15035#15045#15055#15065#15075#15085#15095#15105#15115#15125#15135#15145#15155#15165#15175#15185#15195#15205#15215#15225#15235#15245#15255#15265#15275#15285#15295#15305#15315#15325#15335#15345#15355#15365#15375#15385#15395#15405 | I22: 115001 | J22: r_duihuabg_005 | K22: r_guanka_015 | L22: 0#-372 | M22: 1 | N22: 1.5 | O22: 3765#-3060 | P22: 3927#-3359 | Q22: 161#-156 | R22: 宁幽城 | S22: 妖临城下，御水之危。#人心惶惶，满城风雨。#阳城一笑，非我所念。#浪里孤舟，干城之将。 | T22: 200055

Sheet Sheet2
C4: 1011 | D4: =C4+1000 -> 2011 | E4: =D4+1000 -> 3011 | F4: 4011 | G4: 5011 | H4: 6011 | I4: 7011 | J4: 8011 | K4: 9011 | L4: 10011 | M4: 11011 | N4: 12011 | O4: 13011 | P4: 14011 | Q4: 15011 | R4: =_xlfn.TEXTJOIN("#",TRUE,C4:C23) ->  | S4: =_xlfn.TEXTJOIN("#",TRUE,D4:D23) ->  | T4: =_xlfn.TEXTJOIN("#",TRUE,E4:E23) ->  | U4: =_xlfn.TEXTJOIN("#",TRUE,F4:F23) ->  | V4: =_xlfn.TEXTJOIN("#",TRUE,G4:G23) ->  | W4: =_xlfn.TEXTJOIN("#",TRUE,H4:H23) ->  | X4: =_xlfn.TEXTJOIN("#",TRUE,I4:I23) ->  | Y4: =_xlfn.TEXTJOIN("#",TRUE,J4:J23) ->  | Z4: =_xlfn.TEXTJOIN("#",TRUE,K4:K23) ->  | AA4: =_xlfn.TEXTJOIN("#",TRUE,L4:L23) ->  | AB4: =_xlfn.TEXTJOIN("#",TRUE,M4:M23) ->  | AC4: =_xlfn.TEXTJOIN("#",TRUE,N4:N23) ->  | AD4: =_xlfn.TEXTJOIN("#",TRUE,O4:O23) ->  | AE4: =_xlfn.TEXTJOIN("#",TRUE,P4:P23) ->  | AF4: =_xlfn.TEXTJOIN("#",TRUE,Q4:Q23) -> 
C5: =C4+10 -> 1021 | D5: =C5+1000 -> 2021 | E5: =D5+1000 -> 3021 | F5: 4021 | G5: 5021 | H5: 6021 | I5: 7021 | J5: 8021 | K5: 9021 | L5: 10021 | M5: 11021 | N5: 12021 | O5: 13021 | P5: 14021 | Q5: 15021 | R5: =_xlfn.TEXTJOIN("#",TRUE,C24:C43) ->  | S5: =_xlfn.TEXTJOIN("#",TRUE,D24:D43) ->  | T5: =_xlfn.TEXTJOIN("#",TRUE,E24:E43) ->  | U5: =_xlfn.TEXTJOIN("#",TRUE,F24:F43) ->  | V5: =_xlfn.TEXTJOIN("#",TRUE,G24:G43) ->  | W5: =_xlfn.TEXTJOIN("#",TRUE,H24:H43) ->  | X5: =_xlfn.TEXTJOIN("#",TRUE,I24:I43) ->  | Y5: =_xlfn.TEXTJOIN("#",TRUE,J24:J43) ->  | Z5: =_xlfn.TEXTJOIN("#",TRUE,K24:K43) ->  | AA5: =_xlfn.TEXTJOIN("#",TRUE,L24:L43) ->  | AB5: =_xlfn.TEXTJOIN("#",TRUE,M24:M43) ->  | AC5: =_xlfn.TEXTJOIN("#",TRUE,N24:N43) ->  | AD5: =_xlfn.TEXTJOIN("#",TRUE,O24:O43) ->  | AE5: =_xlfn.TEXTJOIN("#",TRUE,P24:P43) ->  | AF5: =_xlfn.TEXTJOIN("#",TRUE,Q24:Q43) -> 
C6: =C5+10 -> 1031 | D6: 2031 | E6: =D6+1000 -> 3031 | F6: 4031 | G6: 5031 | H6: 6031 | I6: 7031 | J6: 8031 | K6: 9031 | L6: 10031 | M6: 11031 | N6: 12031 | O6: 13031 | P6: 14031 | Q6: 15031 | R6: =_xlfn.TEXTJOIN("#",TRUE,C44:C63) ->  | S6: =_xlfn.TEXTJOIN("#",TRUE,D44:D63) ->  | T6: =_xlfn.TEXTJOIN("#",TRUE,E44:E63) ->  | U6: =_xlfn.TEXTJOIN("#",TRUE,F44:F63) ->  | V6: =_xlfn.TEXTJOIN("#",TRUE,G44:G63) ->  | W6: =_xlfn.TEXTJOIN("#",TRUE,H44:H63) ->  | X6: =_xlfn.TEXTJOIN("#",TRUE,I44:I63) ->  | Y6: =_xlfn.TEXTJOIN("#",TRUE,J44:J63) ->  | Z6: =_xlfn.TEXTJOIN("#",TRUE,K44:K63) ->  | AA6: =_xlfn.TEXTJOIN("#",TRUE,L44:L63) ->  | AB6: =_xlfn.TEXTJOIN("#",TRUE,M44:M63) ->  | AC6: =_xlfn.TEXTJOIN("#",TRUE,N44:N63) ->  | AD6: =_xlfn.TEXTJOIN("#",TRUE,O44:O63) ->  | AE6: =_xlfn.TEXTJOIN("#",TRUE,P44:P63) ->  | AF6: =_xlfn.TEXTJOIN("#",TRUE,Q44:Q63) -> 
C7: 1041 | D7: 2041 | E7: =D7+1000 -> 3041 | F7: 4041 | G7: 5041 | H7: 6041 | I7: 7041 | J7: 8041 | K7: 9041 | L7: 10041 | M7: 11041 | N7: 12041 | O7: 13041 | P7: 14041 | Q7: 15041 | R7: =_xlfn.TEXTJOIN("#",TRUE,C64:C83) ->  | S7: =_xlfn.TEXTJOIN("#",TRUE,D64:D83) ->  | T7: =_xlfn.TEXTJOIN("#",TRUE,E64:E83) ->  | U7: =_xlfn.TEXTJOIN("#",TRUE,F64:F83) ->  | V7: =_xlfn.TEXTJOIN("#",TRUE,G64:G83) ->  | W7: =_xlfn.TEXTJOIN("#",TRUE,H64:H83) ->  | X7: =_xlfn.TEXTJOIN("#",TRUE,I64:I83) ->  | Y7: =_xlfn.TEXTJOIN("#",TRUE,J64:J83) ->  | Z7: =_xlfn.TEXTJOIN("#",TRUE,K64:K83) ->  | AA7: =_xlfn.TEXTJOIN("#",TRUE,L64:L83) ->  | AB7: =_xlfn.TEXTJOIN("#",TRUE,M64:M83) ->  | AC7: =_xlfn.TEXTJOIN("#",TRUE,N64:N83) ->  | AD7: =_xlfn.TEXTJOIN("#",TRUE,O64:O83) ->  | AE7: =_xlfn.TEXTJOIN("#",TRUE,P64:P83) ->  | AF7: =_xlfn.TEXTJOIN("#",TRUE,Q64:Q83) -> 
C8: 1051 | D8: 2051 | E8: =D8+1000 -> 3051 | F8: 4051 | G8: 5051 | H8: 6051 | I8: 7051 | J8: 8051 | K8: 9051 | L8: 10051 | M8: 11051 | N8: 12051 | O8: 13051 | P8: 14051 | Q8: 15051 | R8: =_xlfn.TEXTJOIN("#",TRUE,C84:C103) ->  | S8: =_xlfn.TEXTJOIN("#",TRUE,D84:D103) ->  | T8: =_xlfn.TEXTJOIN("#",TRUE,E84:E103) ->  | U8: =_xlfn.TEXTJOIN("#",TRUE,F84:F103) ->  | V8: =_xlfn.TEXTJOIN("#",TRUE,G84:G103) ->  | W8: =_xlfn.TEXTJOIN("#",TRUE,H84:H103) ->  | X8: =_xlfn.TEXTJOIN("#",TRUE,I84:I103) ->  | Y8: =_xlfn.TEXTJOIN("#",TRUE,J84:J103) ->  | Z8: =_xlfn.TEXTJOIN("#",TRUE,K84:K103) ->  | AA8: =_xlfn.TEXTJOIN("#",TRUE,L84:L103) ->  | AB8: =_xlfn.TEXTJOIN("#",TRUE,M84:M103) ->  | AC8: =_xlfn.TEXTJOIN("#",TRUE,N84:N103) ->  | AD8: =_xlfn.TEXTJOIN("#",TRUE,O84:O103) ->  | AE8: =_xlfn.TEXTJOIN("#",TRUE,P84:P103) ->  | AF8: =_xlfn.TEXTJOIN("#",TRUE,Q84:Q103) -> 
C9: 1061 | D9: 2061 | E9: =D9+1000 -> 3061 | F9: 4061 | G9: 5061 | H9: 6061 | I9: 7061 | J9: 8061 | K9: 9061 | L9: 10061 | M9: 11061 | N9: 12061 | O9: 13061 | P9: 14061 | Q9: 15061
C10: 1071 | D10: 2071 | E10: =D10+1000 -> 3071 | F10: 4071 | G10: 5071 | H10: 6071 | I10: 7071 | J10: 8071 | K10: 9071 | L10: 10071 | M10: 11071 | N10: 12071 | O10: 13071 | P10: 14071 | Q10: 15071
C11: 1081 | D11: 2081 | E11: =D11+1000 -> 3081 | F11: 4081 | G11: 5081 | H11: 6081 | I11: 7081 | J11: 8081 | K11: 9081 | L11: 10081 | M11: 11081 | N11: 12081 | O11: 13081 | P11: 14081 | Q11: 15081
C12: 1091 | D12: 2091 | E12: =D12+1000 -> 3091 | F12: 4091 | G12: 5091 | H12: 6091 | I12: 7091 | J12: 8091 | K12: 9091 | L12: 10091 | M12: 11091 | N12: 12091 | O12: 13091 | P12: 14091 | Q12: 15091
C13: 1101 | D13: 2101 | E13: =D13+1000 -> 3101 | F13: 4101 | G13: 5101 | H13: 6101 | I13: 7101 | J13: 8101 | K13: 9101 | L13: 10101 | M13: 11101 | N13: 12101 | O13: 13101 | P13: 14101 | Q13: 15101
C14: 1111 | D14: 2111 | E14: =D14+1000 -> 3111 | F14: 4111 | G14: 5111 | H14: 6111 | I14: 7111 | J14: 8111 | K14: 9111 | L14: 10111 | M14: 11111 | N14: 12111 | O14: 13111 | P14: 14111 | Q14: 15111
C15: 1121 | D15: 2121 | E15: =D15+1000 -> 3121 | F15: 4121 | G15: 5121 | H15: 6121 | I15: 7121 | J15: 8121 | K15: 9121 | L15: 10121 | M15: 11121 | N15: 12121 | O15: 13121 | P15: 14121 | Q15: 15121
C16: 1131 | D16: 2131 | E16: =D16+1000 -> 3131 | F16: 4131 | G16: 5131 | H16: 6131 | I16: 7131 | J16: 8131 | K16: 9131 | L16: 10131 | M16: 11131 | N16: 12131 | O16: 13131 | P16: 14131 | Q16: 15131
C17: 1141 | D17: 2141 | E17: =D17+1000 -> 3141 | F17: 4141 | G17: 5141 | H17: 6141 | I17: 7141 | J17: 8141 | K17: 9141 | L17: 10141 | M17: 11141 | N17: 12141 | O17: 13141 | P17: 14141 | Q17: 15141
C18: 1151 | D18: 2151 | E18: =D18+1000 -> 3151 | F18: 4151 | G18: 5151 | H18: 6151 | I18: 7151 | J18: 8151 | K18: 9151 | L18: 10151 | M18: 11151 | N18: 12151 | O18: 13151 | P18: 14151 | Q18: 15151
C19: 1161 | D19: 2161 | E19: =D19+1000 -> 3161 | F19: 4161 | G19: 5161 | H19: 6161 | I19: 7161 | J19: 8161 | K19: 9161 | L19: 10161 | M19: 11161 | N19: 12161 | O19: 13161 | P19: 14161 | Q19: 15161
C20: 1171 | D20: 2171 | E20: =D20+1000 -> 3171 | F20: 4171 | G20: 5171 | H20: 6171 | I20: 7171 | J20: 8171 | K20: 9171 | L20: 10171 | M20: 11171 | N20: 12171 | O20: 13171 | P20: 14171 | Q20: 15171
C21: 1181 | D21: 2181 | E21: =D21+1000 -> 3181 | F21: 4181 | G21: 5181 | H21: 6181 | I21: 7181 | J21: 8181 | K21: 9181 | L21: 10181 | M21: 11181 | N21: 12181 | O21: 13181 | P21: 14181 | Q21: 15181
C22: 1191 | D22: 2191 | E22: =D22+1000 -> 3191 | F22: 4191 | G22: 5191 | H22: 6191 | I22: 7191 | J22: 8191 | K22: 9191 | L22: 10191 | M22: 11191 | N22: 12191 | O22: 13191 | P22: 14191 | Q22: 15191 | AA22: 1011#1021#1031#1041#1051#1061#1071#1081#1091#1101#1111#1121#1131#1141#1151#1161#1171#1181#1191#1201 | AB22: 2011#2021#2031#2041#2051#2061#2071#2081#2091#2101#2111#2121#2131#2141#2151#2161#2171#2181#2191#2201 | AC22: 3011#3021#3031#3041#3051#3061#3071#3081#3091#3101#3111#3121#3131#3141#3151#3161#3171#3181#3191#3201 | AD22: 4011#4021#4031#4041#4051#4061#4071#4081#4091#4101#4111#4121#4131#4141#4151#4161#4171#4181#4191#4201 | AE22: 5011#5021#5031#5041#5051#5061#5071#5081#5091#5101#5111#5121#5131#5141#5151#5161#5171#5181#5191#5201 | AF22: 6011#6021#6031#6041#6051#6061#6071#6081#6091#6101#6111#6121#6131#6141#6151#6161#6171#6181#6191#6201 | AG22: 7011#7021#7031#7041#7051#7061#7071#7081#7091#7101#7111#7121#7131#7141#7151#7161#7171#7181#7191#7201 | AH22: 8011#8021#8031#8041#8051#8061#8071#8081#8091#8101#8111#8121#8131#8141#8151#8161#8171#8181#8191#8201 | AI22: 9011#9021#9031#9041#9051#9061#9071#9081#9091#9101#9111#9121#9131#9141#9151#9161#9171#9181#9191#9201 | AJ22: 10011#10021#10031#10041#10051#10061#10071#10081#10091#10101#10111#10121#10131#10141#10151#10161#10171#10181#10191#10201 | AK22: 11011#11021#11031#11041#11051#11061#11071#11081#11091#11101#11111#11121#11131#11141#11151#11161#11171#11181#11191#11201 | AL22: 12011#12021#12031#12041#12051#12061#12071#12081#12091#12101#12111#12121#12131#12141#12151#12161#12171#12181#12191#12201 | AM22: 13011#13021#13031#13041#13051#13061#13071#13081#13091#13101#13111#13121#13131#13141#13151#13161#13171#13181#13191#13201 | AN22: 14011#14021#14031#14041#14051#14061#14071#14081#14091#14101#14111#14121#14131#14141#14151#14161#14171#14181#14191#14201 | AO22: 15011#15021#15031#15041#15051#15061#15071#15081#15091#15101#15111#15121#15131#15141#15151#15161#15171#15181#15191#15201
C23: 1201 | D23: 2201 | E23: =D23+1000 -> 3201 | F23: 4201 | G23: 5201 | H23: 6201 | I23: 7201 | J23: 8201 | K23: 9201 | L23: 10201 | M23: 11201 | N23: 12201 | O23: 13201 | P23: 14201 | Q23: 15201 | AA23: 1012#1022#1032#1042#1052#1062#1072#1082#1092#1102#1112#1122#1132#1142#1152#1162#1172#1182#1192#1202 | AB23: 2012#2022#2032#2042#2052#2062#2072#2082#2092#2102#2112#2122#2132#2142#2152#2162#2172#2182#2192#2202 | AC23: 3012#3022#3032#3042#3052#3062#3072#3082#3092#3102#3112#3122#3132#3142#3152#3162#3172#3182#3192#3202 | AD23: 4012#4022#4032#4042#4052#4062#4072#4082#4092#4102#4112#4122#4132#4142#4152#4162#4172#4182#4192#4202 | AE23: 5012#5022#5032#5042#5052#5062#5072#5082#5092#5102#5112#5122#5132#5142#5152#5162#5172#5182#5192#5202 | AF23: 6012#6022#6032#6042#6052#6062#6072#6082#6092#6102#6112#6122#6132#6142#6152#6162#6172#6182#6192#6202 | AG23: 7012#7022#7032#7042#7052#7062#7072#7082#7092#7102#7112#7122#7132#7142#7152#7162#7172#7182#7192#7202 | AH23: 8012#8022#8032#8042#8052#8062#8072#8082#8092#8102#8112#8122#8132#8142#8152#8162#8172#8182#8192#8202 | AI23: 9012#9022#9032#9042#9052#9062#9072#9082#9092#9102#9112#9122#9132#9142#9152#9162#9172#9182#9192#9202 | AJ23: 10012#10022#10032#10042#10052#10062#10072#10082#10092#10102#10112#10122#10132#10142#10152#10162#10172#10182#10192#10202 | AK23: 11012#11022#11032#11042#11052#11062#11072#11082#11092#11102#11112#11122#11132#11142#11152#11162#11172#11182#11192#11202 | AL23: 12012#12022#12032#12042#12052#12062#12072#12082#12092#12102#12112#12122#12132#12142#12152#12162#12172#12182#12192#12202 | AM23: 13012#13022#13032#13042#13052#13062#13072#13082#13092#13102#13112#13122#13132#13142#13152#13162#13172#13182#13192#13202 | AN23: 14012#14022#14032#14042#14052#14062#14072#14082#14092#14102#14112#14122#14132#14142#14152#14162#14172#14182#14192#14202 | AO23: 15012#15022#15032#15042#15052#15062#15072#15082#15092#15102#15112#15122#15132#15142#15152#15162#15172#15182#15192#15202
C24: =C4+1 -> 1012 | D24: =D4+1 -> 2012 | E24: 3012 | F24: 4012 | G24: 5012 | H24: 6012 | I24: 7012 | J24: 8012 | K24: 9012 | L24: 10012 | M24: 11012 | N24: 12012 | O24: 13012 | P24: 14012 | Q24: 15012 | AA24: 1013#1023#1033#1043#1053#1063#1073#1083#1093#1103#1113#1123#1133#1143#1153#1163#1173#1183#1193#1203 | AB24: 2013#2023#2033#2043#2053#2063#2073#2083#2093#2103#2113#2123#2133#2143#2153#2163#2173#2183#2193#2203 | AC24: 3013#3023#3033#3043#3053#3063#3073#3083#3093#3103#3113#3123#3133#3143#3153#3163#3173#3183#3193#3203 | AD24: 4013#4023#4033#4043#4053#4063#4073#4083#4093#4103#4113#4123#4133#4143#4153#4163#4173#4183#4193#4203 | AE24: 5013#5023#5033#5043#5053#5063#5073#5083#5093#5103#5113#5123#5133#5143#5153#5163#5173#5183#5193#5203 | AF24: 6013#6023#6033#6043#6053#6063#6073#6083#6093#6103#6113#6123#6133#6143#6153#6163#6173#6183#6193#6203 | AG24: 7013#7023#7033#7043#7053#7063#7073#7083#7093#7103#7113#7123#7133#7143#7153#7163#7173#7183#7193#7203 | AH24: 8013#8023#8033#8043#8053#8063#8073#8083#8093#8103#8113#8123#8133#8143#8153#8163#8173#8183#8193#8203 | AI24: 9013#9023#9033#9043#9053#9063#9073#9083#9093#9103#9113#9123#9133#9143#9153#9163#9173#9183#9193#9203 | AJ24: 10013#10023#10033#10043#10053#10063#10073#10083#10093#10103#10113#10123#10133#10143#10153#10163#10173#10183#10193#10203 | AK24: 11013#11023#11033#11043#11053#11063#11073#11083#11093#11103#11113#11123#11133#11143#11153#11163#11173#11183#11193#11203 | AL24: 12013#12023#12033#12043#12053#12063#12073#12083#12093#12103#12113#12123#12133#12143#12153#12163#12173#12183#12193#12203 | AM24: 13013#13023#13033#13043#13053#13063#13073#13083#13093#13103#13113#13123#13133#13143#13153#13163#13173#13183#13193#13203 | AN24: 14013#14023#14033#14043#14053#14063#14073#14083#14093#14103#14113#14123#14133#14143#14153#14163#14173#14183#14193#14203 | AO24: 15013#15023#15033#15043#15053#15063#15073#15083#15093#15103#15113#15123#15133#15143#15153#15163#15173#15183#15193#15203
C25: =C5+1 -> 1022 | D25: =D5+1 -> 2022 | E25: =E5+1 -> 3022 | F25: =F5+1 -> 4022 | G25: =G5+1 -> 5022 | H25: =H5+1 -> 6022 | I25: =I5+1 -> 7022 | J25: =J5+1 -> 8022 | K25: =K5+1 -> 9022 | L25: =L5+1 -> 10022 | M25: =M5+1 -> 11022 | N25: =N5+1 -> 12022 | O25: =O5+1 -> 13022 | P25: =P5+1 -> 14022 | Q25: =Q5+1 -> 15022 | AA25: 1014#1024#1034#1044#1054#1064#1074#1084#1094#1104#1114#1124#1134#1144#1154#1164#1174#1184#1194#1204 | AB25: 2014#2024#2034#2044#2054#2064#2074#2084#2094#2104#2114#2124#2134#2144#2154#2164#2174#2184#2194#2204 | AC25: 3014#3024#3034#3044#3054#3064#3074#3084#3094#3104#3114#3124#3134#3144#3154#3164#3174#3184#3194#3204 | AD25: 4014#4024#4034#4044#4054#4064#4074#4084#4094#4104#4114#4124#4134#4144#4154#4164#4174#4184#4194#4204 | AE25: 5014#5024#5034#5044#5054#5064#5074#5084#5094#5104#5114#5124#5134#5144#5154#5164#5174#5184#5194#5204 | AF25: 6014#6024#6034#6044#6054#6064#6074#6084#6094#6104#6114#6124#6134#6144#6154#6164#6174#6184#6194#6204 | AG25: 7014#7024#7034#7044#7054#7064#7074#7084#7094#7104#7114#7124#7134#7144#7154#7164#7174#7184#7194#7204 | AH25: 8014#8024#8034#8044#8054#8064#8074#8084#8094#8104#8114#8124#8134#8144#8154#8164#8174#8184#8194#8204 | AI25: 9014#9024#9034#9044#9054#9064#9074#9084#9094#9104#9114#9124#9134#9144#9154#9164#9174#9184#9194#9204 | AJ25: 10014#10024#10034#10044#10054#10064#10074#10084#10094#10104#10114#10124#10134#10144#10154#10164#10174#10184#10194#10204 | AK25: 11014#11024#11034#11044#11054#11064#11074#11084#11094#11104#11114#11124#11134#11144#11154#11164#11174#11184#11194#11204 | AL25: 12014#12024#12034#12044#12054#12064#12074#12084#12094#12104#12114#12124#12134#12144#12154#12164#12174#12184#12194#12204 | AM25: 13014#13024#13034#13044#13054#13064#13074#13084#13094#13104#13114#13124#13134#13144#13154#13164#13174#13184#13194#13204 | AN25: 14014#14024#14034#14044#14054#14064#14074#14084#14094#14104#14114#14124#14134#14144#14154#14164#14174#14184#14194#14204 | AO25: 15014#15024#15034#15044#15054#15064#15074#15084#15094#15104#15114#15124#15134#15144#15154#15164#15174#15184#15194#15204
C26: 1032 | D26: 2032 | E26: 3032 | F26: 4032 | G26: 5032 | H26: 6032 | I26: 7032 | J26: 8032 | K26: 9032 | L26: 10032 | M26: 11032 | N26: 12032 | O26: 13032 | P26: 14032 | Q26: 15032 | AA26: 1015#1025#1035#1045#1055#1065#1075#1085#1095#1105#1115#1125#1135#1145#1155#1165#1175#1185#1195#1205 | AB26: 2015#2025#2035#2045#2055#2065#2075#2085#2095#2105#2115#2125#2135#2145#2155#2165#2175#2185#2195#2205 | AC26: 3015#3025#3035#3045#3055#3065#3075#3085#3095#3105#3115#3125#3135#3145#3155#3165#3175#3185#3195#3205 | AD26: 4015#4025#4035#4045#4055#4065#4075#4085#4095#4105#4115#4125#4135#4145#4155#4165#4175#4185#4195#4205 | AE26: 5015#5025#5035#5045#5055#5065#5075#5085#5095#5105#5115#5125#5135#5145#5155#5165#5175#5185#5195#5205 | AF26: 6015#6025#6035#6045#6055#6065#6075#6085#6095#6105#6115#6125#6135#6145#6155#6165#6175#6185#6195#6205 | AG26: 7015#7025#7035#7045#7055#7065#7075#7085#7095#7105#7115#7125#7135#7145#7155#7165#7175#7185#7195#7205 | AH26: 8015#8025#8035#8045#8055#8065#8075#8085#8095#8105#8115#8125#8135#8145#8155#8165#8175#8185#8195#8205 | AI26: 9015#9025#9035#9045#9055#9065#9075#9085#9095#9105#9115#9125#9135#9145#9155#9165#9175#9185#9195#9205 | AJ26: 10015#10025#10035#10045#10055#10065#10075#10085#10095#10105#10115#10125#10135#10145#10155#10165#10175#10185#10195#10205 | AK26: 11015#11025#11035#11045#11055#11065#11075#11085#11095#11105#11115#11125#11135#11145#11155#11165#11175#11185#11195#11205 | AL26: 12015#12025#12035#12045#12055#12065#12075#12085#12095#12105#12115#12125#12135#12145#12155#12165#12175#12185#12195#12205 | AM26: 13015#13025#13035#13045#13055#13065#13075#13085#13095#13105#13115#13125#13135#13145#13155#13165#13175#13185#13195#13205 | AN26: 14015#14025#14035#14045#14055#14065#14075#14085#14095#14105#14115#14125#14135#14145#14155#14165#14175#14185#14195#14205 | AO26: 15015#15025#15035#15045#15055#15065#15075#15085#15095#15105#15115#15125#15135#15145#15155#15165#15175#15185#15195#15205
C27: 1042 | D27: 2042 | E27: 3042 | F27: 4042 | G27: 5042 | H27: 6042 | I27: 7042 | J27: 8042 | K27: 9042 | L27: 10042 | M27: 11042 | N27: 12042 | O27: 13042 | P27: 14042 | Q27: 15042
C28: 1052 | D28: 2052 | E28: 3052 | F28: 4052 | G28: 5052 | H28: 6052 | I28: 7052 | J28: 8052 | K28: 9052 | L28: 10052 | M28: 11052 | N28: 12052 | O28: 13052 | P28: 14052 | Q28: 15052
C29: 1062 | D29: 2062 | E29: 3062 | F29: 4062 | G29: 5062 | H29: 6062 | I29: 7062 | J29: 8062 | K29: 9062 | L29: 10062 | M29: 11062 | N29: 12062 | O29: 13062 | P29: 14062 | Q29: 15062
C30: 1072 | D30: 2072 | E30: 3072 | F30: 4072 | G30: 5072 | H30: 6072 | I30: 7072 | J30: 8072 | K30: 9072 | L30: 10072 | M30: 11072 | N30: 12072 | O30: 13072 | P30: 14072 | Q30: 15072
C31: 1082 | D31: 2082 | E31: 3082 | F31: 4082 | G31: 5082 | H31: 6082 | I31: 7082 | J31: 8082 | K31: 9082 | L31: 10082 | M31: 11082 | N31: 12082 | O31: 13082 | P31: 14082 | Q31: 15082
C32: 1092 | D32: 2092 | E32: 3092 | F32: 4092 | G32: 5092 | H32: 6092 | I32: 7092 | J32: 8092 | K32: 9092 | L32: 10092 | M32: 11092 | N32: 12092 | O32: 13092 | P32: 14092 | Q32: 15092
C33: 1102 | D33: 2102 | E33: 3102 | F33: 4102 | G33: 5102 | H33: 6102 | I33: 7102 | J33: 8102 | K33: 9102 | L33: 10102 | M33: 11102 | N33: 12102 | O33: 13102 | P33: 14102 | Q33: 15102
C34: 1112 | D34: 2112 | E34: 3112 | F34: 4112 | G34: 5112 | H34: 6112 | I34: 7112 | J34: 8112 | K34: 9112 | L34: 10112 | M34: 11112 | N34: 12112 | O34: 13112 | P34: 14112 | Q34: 15112 | AA34: 1011#1021#1031#1041#1051#1061#1071#1081#1091#1101#1111#1121#1131#1141#1151#1161#1171#1181#1191#1201 | AB34: 1012#1022#1032#1042#1052#1062#1072#1082#1092#1102#1112#1122#1132#1142#1152#1162#1172#1182#1192#1202 | AC34: 1013#1023#1033#1043#1053#1063#1073#1083#1093#1103#1113#1123#1133#1143#1153#1163#1173#1183#1193#1203 | AD34: 1014#1024#1034#1044#1054#1064#1074#1084#1094#1104#1114#1124#1134#1144#1154#1164#1174#1184#1194#1204 | AE34: 1015#1025#1035#1045#1055#1065#1075#1085#1095#1105#1115#1125#1135#1145#1155#1165#1175#1185#1195#1205
C35: 1122 | D35: 2122 | E35: 3122 | F35: 4122 | G35: 5122 | H35: 6122 | I35: 7122 | J35: 8122 | K35: 9122 | L35: 10122 | M35: 11122 | N35: 12122 | O35: 13122 | P35: 14122 | Q35: 15122 | AA35: 2011#2021#2031#2041#2051#2061#2071#2081#2091#2101#2111#2121#2131#2141#2151#2161#2171#2181#2191#2201 | AB35: 2012#2022#2032#2042#2052#2062#2072#2082#2092#2102#2112#2122#2132#2142#2152#2162#2172#2182#2192#2202 | AC35: 2013#2023#2033#2043#2053#2063#2073#2083#2093#2103#2113#2123#2133#2143#2153#2163#2173#2183#2193#2203 | AD35: 2014#2024#2034#2044#2054#2064#2074#2084#2094#2104#2114#2124#2134#2144#2154#2164#2174#2184#2194#2204 | AE35: 2015#2025#2035#2045#2055#2065#2075#2085#2095#2105#2115#2125#2135#2145#2155#2165#2175#2185#2195#2205
C36: 1132 | D36: 2132 | E36: 3132 | F36: 4132 | G36: 5132 | H36: 6132 | I36: 7132 | J36: 8132 | K36: 9132 | L36: 10132 | M36: 11132 | N36: 12132 | O36: 13132 | P36: 14132 | Q36: 15132 | AA36: 3011#3021#3031#3041#3051#3061#3071#3081#3091#3101#3111#3121#3131#3141#3151#3161#3171#3181#3191#3201 | AB36: 3012#3022#3032#3042#3052#3062#3072#3082#3092#3102#3112#3122#3132#3142#3152#3162#3172#3182#3192#3202 | AC36: 3013#3023#3033#3043#3053#3063#3073#3083#3093#3103#3113#3123#3133#3143#3153#3163#3173#3183#3193#3203 | AD36: 3014#3024#3034#3044#3054#3064#3074#3084#3094#3104#3114#3124#3134#3144#3154#3164#3174#3184#3194#3204 | AE36: 3015#3025#3035#3045#3055#3065#3075#3085#3095#3105#3115#3125#3135#3145#3155#3165#3175#3185#3195#3205
C37: 1142 | D37: 2142 | E37: 3142 | F37: 4142 | G37: 5142 | H37: 6142 | I37: 7142 | J37: 8142 | K37: 9142 | L37: 10142 | M37: 11142 | N37: 12142 | O37: 13142 | P37: 14142 | Q37: 15142 | AA37: 4011#4021#4031#4041#4051#4061#4071#4081#4091#4101#4111#4121#4131#4141#4151#4161#4171#4181#4191#4201 | AB37: 4012#4022#4032#4042#4052#4062#4072#4082#4092#4102#4112#4122#4132#4142#4152#4162#4172#4182#4192#4202 | AC37: 4013#4023#4033#4043#4053#4063#4073#4083#4093#4103#4113#4123#4133#4143#4153#4163#4173#4183#4193#4203 | AD37: 4014#4024#4034#4044#4054#4064#4074#4084#4094#4104#4114#4124#4134#4144#4154#4164#4174#4184#4194#4204 | AE37: 4015#4025#4035#4045#4055#4065#4075#4085#4095#4105#4115#4125#4135#4145#4155#4165#4175#4185#4195#4205
C38: 1152 | D38: 2152 | E38: 3152 | F38: 4152 | G38: 5152 | H38: 6152 | I38: 7152 | J38: 8152 | K38: 9152 | L38: 10152 | M38: 11152 | N38: 12152 | O38: 13152 | P38: 14152 | Q38: 15152 | AA38: 5011#5021#5031#5041#5051#5061#5071#5081#5091#5101#5111#5121#5131#5141#5151#5161#5171#5181#5191#5201 | AB38: 5012#5022#5032#5042#5052#5062#5072#5082#5092#5102#5112#5122#5132#5142#5152#5162#5172#5182#5192#5202 | AC38: 5013#5023#5033#5043#5053#5063#5073#5083#5093#5103#5113#5123#5133#5143#5153#5163#5173#5183#5193#5203 | AD38: 5014#5024#5034#5044#5054#5064#5074#5084#5094#5104#5114#5124#5134#5144#5154#5164#5174#5184#5194#5204 | AE38: 5015#5025#5035#5045#5055#5065#5075#5085#5095#5105#5115#5125#5135#5145#5155#5165#5175#5185#5195#5205
C39: 1162 | D39: 2162 | E39: 3162 | F39: 4162 | G39: 5162 | H39: 6162 | I39: 7162 | J39: 8162 | K39: 9162 | L39: 10162 | M39: 11162 | N39: 12162 | O39: 13162 | P39: 14162 | Q39: 15162 | AA39: 6011#6021#6031#6041#6051#6061#6071#6081#6091#6101#6111#6121#6131#6141#6151#6161#6171#6181#6191#6201 | AB39: 6012#6022#6032#6042#6052#6062#6072#6082#6092#6102#6112#6122#6132#6142#6152#6162#6172#6182#6192#6202 | AC39: 6013#6023#6033#6043#6053#6063#6073#6083#6093#6103#6113#6123#6133#6143#6153#6163#6173#6183#6193#6203 | AD39: 6014#6024#6034#6044#6054#6064#6074#6084#6094#6104#6114#6124#6134#6144#6154#6164#6174#6184#6194#6204 | AE39: 6015#6025#6035#6045#6055#6065#6075#6085#6095#6105#6115#6125#6135#6145#6155#6165#6175#6185#6195#6205
C40: 1172 | D40: 2172 | E40: 3172 | F40: 4172 | G40: 5172 | H40: 6172 | I40: 7172 | J40: 8172 | K40: 9172 | L40: 10172 | M40: 11172 | N40: 12172 | O40: 13172 | P40: 14172 | Q40: 15172 | AA40: 7011#7021#7031#7041#7051#7061#7071#7081#7091#7101#7111#7121#7131#7141#7151#7161#7171#7181#7191#7201 | AB40: 7012#7022#7032#7042#7052#7062#7072#7082#7092#7102#7112#7122#7132#7142#7152#7162#7172#7182#7192#7202 | AC40: 7013#7023#7033#7043#7053#7063#7073#7083#7093#7103#7113#7123#7133#7143#7153#7163#7173#7183#7193#7203 | AD40: 7014#7024#7034#7044#7054#7064#7074#7084#7094#7104#7114#7124#7134#7144#7154#7164#7174#7184#7194#7204 | AE40: 7015#7025#7035#7045#7055#7065#7075#7085#7095#7105#7115#7125#7135#7145#7155#7165#7175#7185#7195#7205
C41: 1182 | D41: 2182 | E41: 3182 | F41: 4182 | G41: 5182 | H41: 6182 | I41: 7182 | J41: 8182 | K41: 9182 | L41: 10182 | M41: 11182 | N41: 12182 | O41: 13182 | P41: 14182 | Q41: 15182 | AA41: 8011#8021#8031#8041#8051#8061#8071#8081#8091#8101#8111#8121#8131#8141#8151#8161#8171#8181#8191#8201 | AB41: 8012#8022#8032#8042#8052#8062#8072#8082#8092#8102#8112#8122#8132#8142#8152#8162#8172#8182#8192#8202 | AC41: 8013#8023#8033#8043#8053#8063#8073#8083#8093#8103#8113#8123#8133#8143#8153#8163#8173#8183#8193#8203 | AD41: 8014#8024#8034#8044#8054#8064#8074#8084#8094#8104#8114#8124#8134#8144#8154#8164#8174#8184#8194#8204 | AE41: 8015#8025#8035#8045#8055#8065#8075#8085#8095#8105#8115#8125#8135#8145#8155#8165#8175#8185#8195#8205
C42: 1192 | D42: 2192 | E42: 3192 | F42: 4192 | G42: 5192 | H42: 6192 | I42: 7192 | J42: 8192 | K42: 9192 | L42: 10192 | M42: 11192 | N42: 12192 | O42: 13192 | P42: 14192 | Q42: 15192 | AA42: 9011#9021#9031#9041#9051#9061#9071#9081#9091#9101#9111#9121#9131#9141#9151#9161#9171#9181#9191#9201 | AB42: 9012#9022#9032#9042#9052#9062#9072#9082#9092#9102#9112#9122#9132#9142#9152#9162#9172#9182#9192#9202 | AC42: 9013#9023#9033#9043#9053#9063#9073#9083#9093#9103#9113#9123#9133#9143#9153#9163#9173#9183#9193#9203 | AD42: 9014#9024#9034#9044#9054#9064#9074#9084#9094#9104#9114#9124#9134#9144#9154#9164#9174#9184#9194#9204 | AE42: 9015#9025#9035#9045#9055#9065#9075#9085#9095#9105#9115#9125#9135#9145#9155#9165#9175#9185#9195#9205
C43: 1202 | D43: 2202 | E43: 3202 | F43: 4202 | G43: 5202 | H43: 6202 | I43: 7202 | J43: 8202 | K43: 9202 | L43: 10202 | M43: 11202 | N43: 12202 | O43: 13202 | P43: 14202 | Q43: 15202 | AA43: 10011#10021#10031#10041#10051#10061#10071#10081#10091#10101#10111#10121#10131#10141#10151#10161#10171#10181#10191#10201 | AB43: 10012#10022#10032#10042#10052#10062#10072#10082#10092#10102#10112#10122#10132#10142#10152#10162#10172#10182#10192#10202 | AC43: 10013#10023#10033#10043#10053#10063#10073#10083#10093#10103#10113#10123#10133#10143#10153#10163#10173#10183#10193#10203 | AD43: 10014#10024#10034#10044#10054#10064#10074#10084#10094#10104#10114#10124#10134#10144#10154#10164#10174#10184#10194#10204 | AE43: 10015#10025#10035#10045#10055#10065#10075#10085#10095#10105#10115#10125#10135#10145#10155#10165#10175#10185#10195#10205
C44: 1013 | D44: =D24+1 -> 2013 | E44: 3013 | F44: 4013 | G44: 5013 | H44: 6013 | I44: 7013 | J44: 8013 | K44: 9013 | L44: 10013 | M44: 11013 | N44: 12013 | O44: 13013 | P44: 14013 | Q44: 15013 | AA44: 11011#11021#11031#11041#11051#11061#11071#11081#11091#11101#11111#11121#11131#11141#11151#11161#11171#11181#11191#11201 | AB44: 11012#11022#11032#11042#11052#11062#11072#11082#11092#11102#11112#11122#11132#11142#11152#11162#11172#11182#11192#11202 | AC44: 11013#11023#11033#11043#11053#11063#11073#11083#11093#11103#11113#11123#11133#11143#11153#11163#11173#11183#11193#11203 | AD44: 11014#11024#11034#11044#11054#11064#11074#11084#11094#11104#11114#11124#11134#11144#11154#11164#11174#11184#11194#11204 | AE44: 11015#11025#11035#11045#11055#11065#11075#11085#11095#11105#11115#11125#11135#11145#11155#11165#11175#11185#11195#11205
C45: =C25+1 -> 1023 | D45: =D25+1 -> 2023 | E45: =E25+1 -> 3023 | F45: =F25+1 -> 4023 | G45: =G25+1 -> 5023 | H45: =H25+1 -> 6023 | I45: =I25+1 -> 7023 | J45: =J25+1 -> 8023 | K45: =K25+1 -> 9023 | L45: =L25+1 -> 10023 | M45: =M25+1 -> 11023 | N45: =N25+1 -> 12023 | O45: =O25+1 -> 13023 | P45: =P25+1 -> 14023 | Q45: =Q25+1 -> 15023 | AA45: 12011#12021#12031#12041#12051#12061#12071#12081#12091#12101#12111#12121#12131#12141#12151#12161#12171#12181#12191#12201 | AB45: 12012#12022#12032#12042#12052#12062#12072#12082#12092#12102#12112#12122#12132#12142#12152#12162#12172#12182#12192#12202 | AC45: 12013#12023#12033#12043#12053#12063#12073#12083#12093#12103#12113#12123#12133#12143#12153#12163#12173#12183#12193#12203 | AD45: 12014#12024#12034#12044#12054#12064#12074#12084#12094#12104#12114#12124#12134#12144#12154#12164#12174#12184#12194#12204 | AE45: 12015#12025#12035#12045#12055#12065#12075#12085#12095#12105#12115#12125#12135#12145#12155#12165#12175#12185#12195#12205
C46: 1033 | D46: 2033 | E46: 3033 | F46: 4033 | G46: 5033 | H46: 6033 | I46: 7033 | J46: 8033 | K46: 9033 | L46: 10033 | M46: 11033 | N46: 12033 | O46: 13033 | P46: 14033 | Q46: 15033 | AA46: 13011#13021#13031#13041#13051#13061#13071#13081#13091#13101#13111#13121#13131#13141#13151#13161#13171#13181#13191#13201 | AB46: 13012#13022#13032#13042#13052#13062#13072#13082#13092#13102#13112#13122#13132#13142#13152#13162#13172#13182#13192#13202 | AC46: 13013#13023#13033#13043#13053#13063#13073#13083#13093#13103#13113#13123#13133#13143#13153#13163#13173#13183#13193#13203 | AD46: 13014#13024#13034#13044#13054#13064#13074#13084#13094#13104#13114#13124#13134#13144#13154#13164#13174#13184#13194#13204 | AE46: 13015#13025#13035#13045#13055#13065#13075#13085#13095#13105#13115#13125#13135#13145#13155#13165#13175#13185#13195#13205
C47: 1043 | D47: 2043 | E47: 3043 | F47: 4043 | G47: 5043 | H47: 6043 | I47: 7043 | J47: 8043 | K47: 9043 | L47: 10043 | M47: 11043 | N47: 12043 | O47: 13043 | P47: 14043 | Q47: 15043 | AA47: 14011#14021#14031#14041#14051#14061#14071#14081#14091#14101#14111#14121#14131#14141#14151#14161#14171#14181#14191#14201 | AB47: 14012#14022#14032#14042#14052#14062#14072#14082#14092#14102#14112#14122#14132#14142#14152#14162#14172#14182#14192#14202 | AC47: 14013#14023#14033#14043#14053#14063#14073#14083#14093#14103#14113#14123#14133#14143#14153#14163#14173#14183#14193#14203 | AD47: 14014#14024#14034#14044#14054#14064#14074#14084#14094#14104#14114#14124#14134#14144#14154#14164#14174#14184#14194#14204 | AE47: 14015#14025#14035#14045#14055#14065#14075#14085#14095#14105#14115#14125#14135#14145#14155#14165#14175#14185#14195#14205
C48: 1053 | D48: 2053 | E48: 3053 | F48: 4053 | G48: 5053 | H48: 6053 | I48: 7053 | J48: 8053 | K48: 9053 | L48: 10053 | M48: 11053 | N48: 12053 | O48: 13053 | P48: 14053 | Q48: 15053 | AA48: 15011#15021#15031#15041#15051#15061#15071#15081#15091#15101#15111#15121#15131#15141#15151#15161#15171#15181#15191#15201 | AB48: 15012#15022#15032#15042#15052#15062#15072#15082#15092#15102#15112#15122#15132#15142#15152#15162#15172#15182#15192#15202 | AC48: 15013#15023#15033#15043#15053#15063#15073#15083#15093#15103#15113#15123#15133#15143#15153#15163#15173#15183#15193#15203 | AD48: 15014#15024#15034#15044#15054#15064#15074#15084#15094#15104#15114#15124#15134#15144#15154#15164#15174#15184#15194#15204 | AE48: 15015#15025#15035#15045#15055#15065#15075#15085#15095#15105#15115#15125#15135#15145#15155#15165#15175#15185#15195#15205
C49: 1063 | D49: 2063 | E49: 3063 | F49: 4063 | G49: 5063 | H49: 6063 | I49: 7063 | J49: 8063 | K49: 9063 | L49: 10063 | M49: 11063 | N49: 12063 | O49: 13063 | P49: 14063 | Q49: 15063
C50: 1073 | D50: 2073 | E50: 3073 | F50: 4073 | G50: 5073 | H50: 6073 | I50: 7073 | J50: 8073 | K50: 9073 | L50: 10073 | M50: 11073 | N50: 12073 | O50: 13073 | P50: 14073 | Q50: 15073
C51: 1083 | D51: 2083 | E51: 3083 | F51: 4083 | G51: 5083 | H51: 6083 | I51: 7083 | J51: 8083 | K51: 9083 | L51: 10083 | M51: 11083 | N51: 12083 | O51: 13083 | P51: 14083 | Q51: 15083
C52: 1093 | D52: 2093 | E52: 3093 | F52: 4093 | G52: 5093 | H52: 6093 | I52: 7093 | J52: 8093 | K52: 9093 | L52: 10093 | M52: 11093 | N52: 12093 | O52: 13093 | P52: 14093 | Q52: 15093
C53: 1103 | D53: 2103 | E53: 3103 | F53: 4103 | G53: 5103 | H53: 6103 | I53: 7103 | J53: 8103 | K53: 9103 | L53: 10103 | M53: 11103 | N53: 12103 | O53: 13103 | P53: 14103 | Q53: 15103
C54: 1113 | D54: 2113 | E54: 3113 | F54: 4113 | G54: 5113 | H54: 6113 | I54: 7113 | J54: 8113 | K54: 9113 | L54: 10113 | M54: 11113 | N54: 12113 | O54: 13113 | P54: 14113 | Q54: 15113
C55: 1123 | D55: 2123 | E55: 3123 | F55: 4123 | G55: 5123 | H55: 6123 | I55: 7123 | J55: 8123 | K55: 9123 | L55: 10123 | M55: 11123 | N55: 12123 | O55: 13123 | P55: 14123 | Q55: 15123
C56: 1133 | D56: 2133 | E56: 3133 | F56: 4133 | G56: 5133 | H56: 6133 | I56: 7133 | J56: 8133 | K56: 9133 | L56: 10133 | M56: 11133 | N56: 12133 | O56: 13133 | P56: 14133 | Q56: 15133
C57: 1143 | D57: 2143 | E57: 3143 | F57: 4143 | G57: 5143 | H57: 6143 | I57: 7143 | J57: 8143 | K57: 9143 | L57: 10143 | M57: 11143 | N57: 12143 | O57: 13143 | P57: 14143 | Q57: 15143
C58: =C38+1 -> 1153 | D58: =D38+1 -> 2153 | E58: =E38+1 -> 3153 | F58: =F38+1 -> 4153 | G58: =G38+1 -> 5153 | H58: =H38+1 -> 6153 | I58: =I38+1 -> 7153 | J58: =J38+1 -> 8153 | K58: =K38+1 -> 9153 | L58: =L38+1 -> 10153 | M58: =M38+1 -> 11153 | N58: =N38+1 -> 12153 | O58: =O38+1 -> 13153 | P58: =P38+1 -> 14153 | Q58: =Q38+1 -> 15153
C59: 1163 | D59: 2163 | E59: 3163 | F59: 4163 | G59: 5163 | H59: 6163 | I59: 7163 | J59: 8163 | K59: 9163 | L59: 10163 | M59: 11163 | N59: 12163 | O59: 13163 | P59: 14163 | Q59: 15163
C60: 1173 | D60: 2173 | E60: 3173 | F60: 4173 | G60: 5173 | H60: 6173 | I60: 7173 | J60: 8173 | K60: 9173 | L60: 10173 | M60: 11173 | N60: 12173 | O60: 13173 | P60: 14173 | Q60: 15173
C61: 1183 | D61: 2183 | E61: 3183 | F61: 4183 | G61: 5183 | H61: 6183 | I61: 7183 | J61: 8183 | K61: 9183 | L61: 10183 | M61: 11183 | N61: 12183 | O61: 13183 | P61: 14183 | Q61: 15183
C62: 1193 | D62: 2193 | E62: 3193 | F62: 4193 | G62: 5193 | H62: 6193 | I62: 7193 | J62: 8193 | K62: 9193 | L62: 10193 | M62: 11193 | N62: 12193 | O62: 13193 | P62: 14193 | Q62: 15193
C63: 1203 | D63: 2203 | E63: 3203 | F63: 4203 | G63: 5203 | H63: 6203 | I63: 7203 | J63: 8203 | K63: 9203 | L63: 10203 | M63: 11203 | N63: 12203 | O63: 13203 | P63: 14203 | Q63: 15203
C64: 1014 | D64: 2014 | E64: 3014 | F64: 4014 | G64: 5014 | H64: 6014 | I64: 7014 | J64: 8014 | K64: 9014 | L64: 10014 | M64: 11014 | N64: 12014 | O64: 13014 | P64: 14014 | Q64: 15014
C65: 1024 | D65: 2024 | E65: 3024 | F65: 4024 | G65: 5024 | H65: 6024 | I65: 7024 | J65: 8024 | K65: 9024 | L65: 10024 | M65: 11024 | N65: 12024 | O65: 13024 | P65: 14024 | Q65: 15024
C66: 1034 | D66: 2034 | E66: 3034 | F66: 4034 | G66: 5034 | H66: 6034 | I66: 7034 | J66: 8034 | K66: 9034 | L66: 10034 | M66: 11034 | N66: 12034 | O66: 13034 | P66: 14034 | Q66: 15034
C67: 1044 | D67: 2044 | E67: 3044 | F67: 4044 | G67: 5044 | H67: 6044 | I67: 7044 | J67: 8044 | K67: 9044 | L67: 10044 | M67: 11044 | N67: 12044 | O67: 13044 | P67: 14044 | Q67: 15044
C68: 1054 | D68: 2054 | E68: 3054 | F68: 4054 | G68: 5054 | H68: 6054 | I68: 7054 | J68: 8054 | K68: 9054 | L68: 10054 | M68: 11054 | N68: 12054 | O68: 13054 | P68: 14054 | Q68: 15054
C69: 1064 | D69: 2064 | E69: 3064 | F69: 4064 | G69: 5064 | H69: 6064 | I69: 7064 | J69: 8064 | K69: 9064 | L69: 10064 | M69: 11064 | N69: 12064 | O69: 13064 | P69: 14064 | Q69: 15064
C70: 1074 | D70: 2074 | E70: 3074 | F70: 4074 | G70: 5074 | H70: 6074 | I70: 7074 | J70: 8074 | K70: 9074 | L70: 10074 | M70: 11074 | N70: 12074 | O70: 13074 | P70: 14074 | Q70: 15074
C71: 1084 | D71: 2084 | E71: 3084 | F71: 4084 | G71: 5084 | H71: 6084 | I71: 7084 | J71: 8084 | K71: 9084 | L71: 10084 | M71: 11084 | N71: 12084 | O71: 13084 | P71: 14084 | Q71: 15084
C72: =C52+1 -> 1094 | D72: =D52+1 -> 2094 | E72: =E52+1 -> 3094 | F72: =F52+1 -> 4094 | G72: =G52+1 -> 5094 | H72: =H52+1 -> 6094 | I72: =I52+1 -> 7094 | J72: =J52+1 -> 8094 | K72: =K52+1 -> 9094 | L72: =L52+1 -> 10094 | M72: =M52+1 -> 11094 | N72: =N52+1 -> 12094 | O72: =O52+1 -> 13094 | P72: =P52+1 -> 14094 | Q72: =Q52+1 -> 15094
C73: 1104 | D73: 2104 | E73: 3104 | F73: 4104 | G73: 5104 | H73: 6104 | I73: 7104 | J73: 8104 | K73: 9104 | L73: 10104 | M73: 11104 | N73: 12104 | O73: 13104 | P73: 14104 | Q73: 15104
C74: 1114 | D74: 2114 | E74: 3114 | F74: 4114 | G74: 5114 | H74: 6114 | I74: 7114 | J74: 8114 | K74: 9114 | L74: 10114 | M74: 11114 | N74: 12114 | O74: 13114 | P74: 14114 | Q74: 15114
C75: 1124 | D75: 2124 | E75: 3124 | F75: 4124 | G75: 5124 | H75: 6124 | I75: 7124 | J75: 8124 | K75: 9124 | L75: 10124 | M75: 11124 | N75: 12124 | O75: 13124 | P75: 14124 | Q75: 15124
C76: 1134 | D76: 2134 | E76: 3134 | F76: 4134 | G76: 5134 | H76: 6134 | I76: 7134 | J76: 8134 | K76: 9134 | L76: 10134 | M76: 11134 | N76: 12134 | O76: 13134 | P76: 14134 | Q76: 15134
C77: 1144 | D77: 2144 | E77: 3144 | F77: 4144 | G77: 5144 | H77: 6144 | I77: 7144 | J77: 8144 | K77: 9144 | L77: 10144 | M77: 11144 | N77: 12144 | O77: 13144 | P77: 14144 | Q77: 15144
C78: 1154 | D78: 2154 | E78: 3154 | F78: 4154 | G78: 5154 | H78: 6154 | I78: 7154 | J78: 8154 | K78: 9154 | L78: 10154 | M78: 11154 | N78: 12154 | O78: 13154 | P78: 14154 | Q78: 15154
C79: 1164 | D79: 2164 | E79: 3164 | F79: 4164 | G79: 5164 | H79: 6164 | I79: 7164 | J79: 8164 | K79: 9164 | L79: 10164 | M79: 11164 | N79: 12164 | O79: 13164 | P79: 14164 | Q79: 15164
C80: 1174 | D80: 2174 | E80: 3174 | F80: 4174 | G80: 5174 | H80: 6174 | I80: 7174 | J80: 8174 | K80: 9174 | L80: 10174 | M80: 11174 | N80: 12174 | O80: 13174 | P80: 14174 | Q80: 15174
C81: 1184 | D81: 2184 | E81: 3184 | F81: 4184 | G81: 5184 | H81: 6184 | I81: 7184 | J81: 8184 | K81: 9184 | L81: 10184 | M81: 11184 | N81: 12184 | O81: 13184 | P81: 14184 | Q81: 15184
C82: 1194 | D82: 2194 | E82: 3194 | F82: 4194 | G82: 5194 | H82: 6194 | I82: 7194 | J82: 8194 | K82: 9194 | L82: 10194 | M82: 11194 | N82: 12194 | O82: 13194 | P82: 14194 | Q82: 15194
C83: 1204 | D83: 2204 | E83: 3204 | F83: 4204 | G83: 5204 | H83: 6204 | I83: 7204 | J83: 8204 | K83: 9204 | L83: 10204 | M83: 11204 | N83: 12204 | O83: 13204 | P83: 14204 | Q83: 15204
C84: 1015 | D84: 2015 | E84: 3015 | F84: 4015 | G84: 5015 | H84: 6015 | I84: 7015 | J84: 8015 | K84: 9015 | L84: 10015 | M84: 11015 | N84: 12015 | O84: 13015 | P84: 14015 | Q84: 15015
C85: 1025 | D85: 2025 | E85: 3025 | F85: 4025 | G85: 5025 | H85: 6025 | I85: 7025 | J85: 8025 | K85: 9025 | L85: 10025 | M85: 11025 | N85: 12025 | O85: 13025 | P85: 14025 | Q85: 15025
C86: 1035 | D86: 2035 | E86: 3035 | F86: 4035 | G86: 5035 | H86: 6035 | I86: 7035 | J86: 8035 | K86: 9035 | L86: 10035 | M86: 11035 | N86: 12035 | O86: 13035 | P86: 14035 | Q86: 15035
C87: 1045 | D87: 2045 | E87: 3045 | F87: 4045 | G87: 5045 | H87: 6045 | I87: 7045 | J87: 8045 | K87: 9045 | L87: 10045 | M87: 11045 | N87: 12045 | O87: 13045 | P87: 14045 | Q87: 15045
C88: =C68+1 -> 1055 | D88: =D68+1 -> 2055 | E88: =E68+1 -> 3055 | F88: =F68+1 -> 4055 | G88: =G68+1 -> 5055 | H88: =H68+1 -> 6055 | I88: =I68+1 -> 7055 | J88: =J68+1 -> 8055 | K88: =K68+1 -> 9055 | L88: =L68+1 -> 10055 | M88: =M68+1 -> 11055 | N88: =N68+1 -> 12055 | O88: =O68+1 -> 13055 | P88: =P68+1 -> 14055 | Q88: =Q68+1 -> 15055
C89: 1065 | D89: 2065 | E89: 3065 | F89: 4065 | G89: 5065 | H89: 6065 | I89: 7065 | J89: 8065 | K89: 9065 | L89: 10065 | M89: 11065 | N89: 12065 | O89: 13065 | P89: 14065 | Q89: 15065
C90: 1075 | D90: 2075 | E90: 3075 | F90: 4075 | G90: 5075 | H90: 6075 | I90: 7075 | J90: 8075 | K90: 9075 | L90: 10075 | M90: 11075 | N90: 12075 | O90: 13075 | P90: 14075 | Q90: 15075
C91: 1085 | D91: 2085 | E91: 3085 | F91: 4085 | G91: 5085 | H91: 6085 | I91: 7085 | J91: 8085 | K91: 9085 | L91: 10085 | M91: 11085 | N91: 12085 | O91: 13085 | P91: 14085 | Q91: 15085
C92: 1095 | D92: 2095 | E92: 3095 | F92: 4095 | G92: 5095 | H92: 6095 | I92: 7095 | J92: 8095 | K92: 9095 | L92: 10095 | M92: 11095 | N92: 12095 | O92: 13095 | P92: 14095 | Q92: 15095
C93: 1105 | D93: 2105 | E93: 3105 | F93: 4105 | G93: 5105 | H93: 6105 | I93: 7105 | J93: 8105 | K93: 9105 | L93: 10105 | M93: 11105 | N93: 12105 | O93: 13105 | P93: 14105 | Q93: 15105
C94: 1115 | D94: 2115 | E94: 3115 | F94: 4115 | G94: 5115 | H94: 6115 | I94: 7115 | J94: 8115 | K94: 9115 | L94: 10115 | M94: 11115 | N94: 12115 | O94: 13115 | P94: 14115 | Q94: 15115
C95: 1125 | D95: 2125 | E95: 3125 | F95: 4125 | G95: 5125 | H95: 6125 | I95: 7125 | J95: 8125 | K95: 9125 | L95: 10125 | M95: 11125 | N95: 12125 | O95: 13125 | P95: 14125 | Q95: 15125
C96: 1135 | D96: 2135 | E96: 3135 | F96: 4135 | G96: 5135 | H96: 6135 | I96: 7135 | J96: 8135 | K96: 9135 | L96: 10135 | M96: 11135 | N96: 12135 | O96: 13135 | P96: 14135 | Q96: 15135
C97: 1145 | D97: 2145 | E97: 3145 | F97: 4145 | G97: 5145 | H97: 6145 | I97: 7145 | J97: 8145 | K97: 9145 | L97: 10145 | M97: 11145 | N97: 12145 | O97: 13145 | P97: 14145 | Q97: 15145
C98: 1155 | D98: 2155 | E98: 3155 | F98: 4155 | G98: 5155 | H98: 6155 | I98: 7155 | J98: 8155 | K98: 9155 | L98: 10155 | M98: 11155 | N98: 12155 | O98: 13155 | P98: 14155 | Q98: 15155
C99: 1165 | D99: 2165 | E99: 3165 | F99: 4165 | G99: 5165 | H99: 6165 | I99: 7165 | J99: 8165 | K99: 9165 | L99: 10165 | M99: 11165 | N99: 12165 | O99: 13165 | P99: 14165 | Q99: 15165
C100: 1175 | D100: 2175 | E100: 3175 | F100: 4175 | G100: 5175 | H100: 6175 | I100: 7175 | J100: 8175 | K100: 9175 | L100: 10175 | M100: 11175 | N100: 12175 | O100: 13175 | P100: 14175 | Q100: 15175
C101: 1185 | D101: 2185 | E101: 3185 | F101: 4185 | G101: 5185 | H101: 6185 | I101: 7185 | J101: 8185 | K101: 9185 | L101: 10185 | M101: 11185 | N101: 12185 | O101: 13185 | P101: 14185 | Q101: 15185
C102: 1195 | D102: 2195 | E102: 3195 | F102: 4195 | G102: 5195 | H102: 6195 | I102: 7195 | J102: 8195 | K102: 9195 | L102: 10195 | M102: 11195 | N102: 12195 | O102: 13195 | P102: 14195 | Q102: 15195
C103: 1205 | D103: 2205 | E103: 3205 | F103: 4205 | G103: 5205 | H103: 6205 | I103: 7205 | J103: 8205 | K103: 9205 | L103: 10205 | M103: 11205 | N103: 12205 | O103: 13205 | P103: 14205 | Q103: 15205

Sheet Sheet1
G10: 1 | H10: 浓雾迷境 | I10: 977#-2307 | J10: 1084#-2682 | K10: =VLOOKUP(H10,$I$34:$J$48,2,FALSE) -> 119#-215 | O10: 荆棘流域 | P10: 幽林迷境，冒险伊始。#密林深处，不知其名。#妖兽遍野，终焉将至。#偷天换日，背水一战。
G11: 2 | H11: 遗留线索 | I11: 1422#-2350 | J11: 1536#-2653 | K11: =VLOOKUP(H11,$I$34:$J$48,2,FALSE) -> 153#-218 | O11: 聚落废墟 | P11: 三途聚落，昔日繁华。#兽潮过处，草木不存。#毁灭之后，却待新生。#魑魅魍魉，我自迎上。
G12: 3 | H12: 聚落废墟 | I12: 1471#-1967 | J12: 1594#-2287 | K12: 78#-143 | O12: 遗留线索 | P12: 昔日伙伴，不知所踪。#寻踪觅迹，线索浮现。#水清木华，信念不弃。#塞翁失马，焉知非福。
G13: 4 | H13: 渔村废墟 | I13: 2237#-1938 | J13: 2162#-2279 | K13: -11#-129 | O13: 原野追踪 | P13: 蛛丝马迹，逐寻原野。#危机四伏，前路未知。#枯苗望雨，望眼欲穿。#重逢之时，指日可待。
G14: 5 | H14: 盟会伙伴 | I14: 2013#-2280 | J14: 2120#-2637 | K14: 105#-148 | O14: 盟会伙伴 | P14: 莫逆之交，心心相印。#风雨同舟，推心置腹。#无论贫富，倾盖如故。#患难与共，肝胆相照。
G15: 6 | H15: 原野追踪 | I15: 1860#-2678 | J15: 1986#-3043 | K15: 129#-221 | O15: 渔村废墟 | P15: 樵村渔浦，毁于一旦。#渔夫村老，十不存一。#妖兽天灾，堪如灭顶。#昔日风光，何时再现。
G16: 7 | H16: 渔民相助 | I16: 2496#-2737 | J16: 2585#-3074 | K16: 92#-213 | O16: 渔民相助 | P16: 河边秘地，生机仍存。#朴实渔夫，出手相助。#投桃报李，一路同行。#不无小补，一诺千金。
G17: 8 | H17: 撤离平民 | I17: 2963#-2867 | J17: 3067#-3208 | K17: 137#-199 | O17: 水路疾行 | P17: 渔村江流，一叶扁舟。#青山绿水，无心留赏。#妖兽危机，愈演愈切。#心急如焚，船行似箭。
G18: 9 | H18: 水路疾行 | I18: 2911#-2338 | J18: 2743#-2734 | K18: -122#-164 | O18: 妖兽动向 | P18: 金玉满堂，珠光宝气。#大富之商，一夕落魄。#天灾将至，无人幸免。#携尔同行，齐人共难。
G19: 10 | H19: 妖兽动向 | I19: 3113#-1979 | J19: 3041#-2321 | K19: -99#-132 | O19: 观澜港口 | P19: 繁荣之港，危情千钧。#雾里看花，不明就里。#未雨绸缪，百姓得存。#厉兵秣马，御敌于外。
G20: 11 | H20: 观澜港口 | I20: 2988#-1561 | J20: 3121#-1928 | K20: 139#-157 | O20: 撤离平民 | P20: 侠之大者，为国为民。#危机当前，以民为先。#异妖之见，我自不取。#力求民安，唯愿心安。
G21: 12 | H21: 上古法阵 | I21: 3826#-1965 | J21: 3706#-2269 | K21: -125#-90 | O21: 危机之城 | P21: 妖临城下，御水之危。#人心惶惶，满城风雨。#阳城一笑，非我所念。#浪里孤舟，干城之将。
G22: 13 | H22: 危机之城 | I22: 3404#-2333 | J22: 3509#-2737 | K22: 112#-250 | O22: 上古法阵 | P22: 人族纪元，几经磨炼。#四面妖声，侵掠如火。#上古遗阵，或为奇兵。#异妖之示，福泽困城。
G23: 14 | H23: 灵石消息 | I23: 3765#-3060 | J23: 3927#-3359 | K23: 161#-156 | O23: 灵石消息 | P23: 古阵之启，尚需奇物。#珍稀灵石，少见于世。#城主府库，或有留存。#铤而走险，火中取栗。
G24: 15 | H24: 混乱之城 | I24: 4039#-2669 | J24: 3940#-3033 | K24: -107#-128 | O24: 混乱之城 | P24: 欲使其亡，先使其狂。#宵小之徒，逐一浮现。#大厦将倾，独力难挽。#人事已尽，各安天命。
N28: 1 | O28: 荆棘流域 | P28: 樵村渔浦，毁于一旦。#渔夫村老，十不存一。#妖兽天灾，堪如灭顶。#昔日风光，何时再现。
N29: 2 | O29: 疾行水路 | P29: 渔村江流，一叶扁舟。#青山绿水，无心留赏。#妖兽危机，愈演愈切。#心急如焚，船行似箭。
N30: 3 | O30: 追踪原野 | P30: 蛛丝马迹，逐寻原野。#危机四伏，前路未知。#枯苗望雨，望眼欲穿。#重逢之时，指日可待。
N31: 4 | O31: 观澜港口 | P31: 繁荣之港，危情千钧。#雾里看花，不明就里。#未雨绸缪，百姓得存。#厉兵秣马，御敌于外。
N32: 5 | O32: 聚落废墟 | P32: 三途聚落，昔日繁华。#兽潮过处，草木不存。#毁灭之后，却待新生。#魑魅魍魉，我自迎上。
N33: 6 | O33: 浓雾森林 | P33: 幽林迷境，冒险伊始。#密林深处，不知其名。#妖兽遍野，终焉将至。#偷天换日，背水一战。
I34: 浓雾迷境 | J34: 119#-215 | N34: 7 | O34: 锦绣河山 | P34: 秀山依旧，春风花草。#溪云初起，四月芳菲。#千鸟绝飞，万径无踪。#山河仍在，草木已深。
I35: 聚落废墟 | J35: 78#-143 | N35: 8 | O35: 海岛遗境 | P35: 昔日伙伴，不知所踪。#寻踪觅迹，线索浮现。#水清木华，信念不弃。#塞翁失马，焉知非福。
I36: 遗留线索 | J36: 153#-218 | N36: 9 | O36: 黍秀宫廷 | P36: 曲径通幽，楼阁隐现。#山间避世，难免天灾。#悠游大地，齐人共难。#钟神造化，阴阳昏晓。
I37: 原野追踪 | J37: 129#-221 | N37: 10 | O37: 朝圣之路 | P37: 可堪回首，神呀涉谷。#佛性清净，何处尘埃。#禅祠山下，梦魂归所。#言遇劫火，千年怒潮。
I38: 盟会伙伴 | J38: 105#-148 | N38: 11 | O38: 上古遗阵 | P38: 人族纪元，几经磨炼。#四面妖声，侵掠如火。#上古遗阵，或为奇兵。#异妖之示，福泽困城。
I39: 渔村废墟 | J39: -11#-129 | N39: 12 | O39: 混乱之城 | P39: 欲使其亡，先使其狂。#宵小之徒，逐一浮现。#大厦将倾，独力难挽。#人事已尽，各安天命。
I40: 渔民相助 | J40: 92#-213 | N40: 13 | O40: 御水宝涧 | P40: 古阵之启，尚需奇物。#珍稀灵石，少见于世。#城主府库，或有留存。#铤而走险，火中取栗。
I41: 水路疾行 | J41: -122#-164 | N41: 14 | O41: 黄泉酆都 | P41: 彼岸花炽，谁匿香里。#往歌如旧，离合知否。#起忆无人，万里惘然。#灯稀火寒，花叶不见。
I42: 妖兽动向 | J42: -99#-132 | N42: 15 | O42: 危机之城 | P42: 妖临城下，御水之危。#人心惶惶，满城风雨。#阳城一笑，非我所念。#浪里孤舟，干城之将。
I43: 观澜港口 | J43: 139#-157
I44: 撤离平民 | J44: 137#-199
I45: 危机之城 | J45: 112#-250
I46: 上古法阵 | J46: -125#-90
I47: 灵石消息 | J47: 161#-156
I48: 混乱之城 | J48: -107#-128
